bitfinex-derivatives/quotes_SOLF0:USTF0_20251210
["timestamp","ask_amount","ask_price","bid_price","bid_amount"]
[1765340849683,3.31,138.73,138.72,0.04815265]
[1765340851784,6.53491865,138.74,138.72,0.04815265]
[1765340852087,9.84491865,138.74,138.72,0.04815265]
[1765340854084,0.04841865,138.74,138.72,3.16815265]
[1765340865499,3.35841865,138.74,138.72,3.16815265]
[1765340865802,0.04841865,138.74,138.72,3.16815265]
[1765340871297,3.31,138.73,138.72,0.04815265]
[1765340871900,9.84491865,138.74,138.72,3.16815265]
[1765340873298,0.04841865,138.74,138.72,3.16815265]
[1765340873693,0.04841865,138.74,138.72,9.65535265]
[1765340873897,0.04841865,138.74,138.73,3.12]
[1765340880299,3.12841865,138.74,138.72,3.31815265]
[1765340881198,0.04841865,138.74,138.72,3.31815265]
[1765340882013,3.12841865,138.74,138.72,3.31815265]
[1765340883207,0.04841865,138.74,138.72,3.31815265]
[1765340885722,0.04841865,138.74,138.73,3.27]
[1765340886813,9.5247,138.78,138.74,3.01]
[1765340887823,0.04732788,138.77,138.74,3.01]
[1765340888415,3.04,138.76,138.74,3.01]
[1765340888610,3.04,138.76,138.73,64.27]
[1765340888811,3.08732788,138.77,138.74,3.01]
[1765340889219,6.4856,138.76,138.74,3.01]
[1765340890315,9.5256,138.76,138.74,3.01]
[1765340892727,6.4856,138.76,138.74,3.01]
[1765340894633,3.08732788,138.77,138.74,3.01]
[1765340896538,0.04732788,138.77,138.74,3.01]
[1765340898626,0.04732788,138.77,138.73,62.96648046]
[1765340898627,0.04732788,138.77,138.76,3.01]
[1765340937958,3.05732788,138.77,138.75,3.26432012]
[1765340938158,3.05732788,138.77,138.75,61.29432012]
[1765340938364,3.05732788,138.77,138.75,64.50432012]
[1765340944966,0.04732788,138.77,138.76,3.25]
[1765340952073,9.6332,138.81,138.77,3.18]
[1765340953063,0.0522912,138.8,138.77,3.18]
[1765340954169,3.16,138.79,138.77,3.18]
[1765340954576,9.6959912,138.8,138.77,3.18]
[1765340955568,3.16,138.79,138.76,9.665]
[1765340955875,3.16,138.78,138.75,64.47432012]
[1765340957577,9.6446,138.78,138.75,64.47432012]
[1765340958175,9.6446,138.78,138.76,3.18]
[1765340959581,3.16,138.76,138.75,61.29432012]
[1765340962974,3.21065339,138.77,138.76,3.18]
[1765340963279,3.21065339,138.77,138.75,61.29432012]
[1765340963280,3.21065339,138.77,138.75,64.47432012]
[1765340966074,0.05065339,138.77,138.76,3.18]
[1765341000403,3.14065339,138.77,138.75,61.31432012]
[1765341000807,3.14065339,138.77,138.75,0.05432012]
[1765341001009,3.09,138.76,138.75,0.05432012]
[1765341001202,3.09,138.75,138.72,3.21]
[1765341001408,3.09,138.74,138.71,3.21]
[1765341002303,3.14082287,138.74,138.71,3.26468191]
[1765341002509,3.14082287,138.74,138.7,61.26]
[1765341002510,3.09,138.72,138.7,62.08622291]
[1765341002705,3.09,138.72,138.7,58.87622291]
[1765341003301,3.09,138.72,138.68,3.21]
[1765341003496,3.09,138.72,138.66,67.7498]
[1765341003497,1.70477623,138.73,138.69,3.26114365]
[1765341003703,0.05341568,138.72,138.69,3.26114365]
[1765341005817,0.05341568,138.72,138.71,3.21]
[1765341006005,0.05341568,138.72,138.71,64.47]
[1765341008018,3.09,138.77,138.72,3.21]
[1765341008216,3.09,138.77,138.73,3.21]
[1765341009114,0.05059662,138.76,138.74,3.31674536]
[1765341011206,0.05059662,138.76,138.74,11.50772159]
[1765341011410,0.05059662,138.76,138.75,3.27]
[1765341013423,11.46777623,138.82,138.76,3.27]
[1765341013622,3.28,138.82,138.78,3.27]
[1765341013809,3.28,138.84,138.79,3.27]
[1765341014519,0.05011032,138.83,138.81,3.27]
[1765341015119,3.33011032,138.83,138.8,3.31759196]
[1765341015308,3.33011032,138.83,138.8,0.04759196]
[1765341015715,3.28,138.82,138.8,3.31759196]
[1765341015915,0.05011032,138.83,138.81,3.27]
[1765341017625,0.05011032,138.83,138.81,9.7531]
[1765341017820,0.05011032,138.83,138.82,3.27]
[1765341018128,0.05011032,138.83,138.82,4.97477623]
[1765341021826,0.05011032,138.83,138.82,3.27]
[1765341022826,3.33011032,138.83,138.8,3.31759196]
[1765341023031,3.33011032,138.83,138.8,0.04759196]
[1765341023622,5.03488655,138.83,138.8,0.04759196]
[1765341023938,3.28,138.82,138.8,0.04759196]
[1765341030132,9.7629,138.82,138.8,0.04759196]
[1765341030429,3.09,138.81,138.8,0.04759196]
[1765341032136,3.09,138.78,138.75,3.19]
[1765341032326,3.09,138.78,138.73,3.19]
[1765341032924,3.09,138.76,138.72,3.19]
[1765341033124,3.13712052,138.75,138.73,0.05262164]
[1765341033831,3.09,138.74,138.73,0.05262164]
[1765341035530,9.62322052,138.75,138.73,3.24262164]
[1765341037942,0.04712052,138.75,138.73,3.24262164]
[1765341039134,3.09,138.8,138.74,3.19]
[1765341040043,0.05240258,138.78,138.76,3.19]
[1765341040243,0.05240258,138.78,138.76,3.23616642]
[1765341041747,0.05240258,138.78,138.77,3.19]
[1765341046343,3.09,138.82,138.77,3.19]
[1765341047550,3.09,138.8,138.77,3.19]
[1765341047743,9.62705941,138.81,138.77,3.23576413]
[1765341047944,3.14385941,138.81,138.77,3.23576413]
[1765341048146,0.05385941,138.81,138.77,3.23576413]
[1765341051258,3.14385941,138.81,138.77,3.23576413]
[1765341054263,0.05385941,138.81,138.77,3.23576413]
[1765341057566,0.05385941,138.81,138.79,3.19]
[1765341064074,0.05385941,138.81,138.8,3.1]
[1765341072980,0.05385941,138.81,138.77,3.33576413]
[1765341072981,3.15385941,138.81,138.77,3.33576413]
[1765341073173,3.15385941,138.81,138.77,0.04576413]
[1765341073483,3.1,138.78,138.77,0.04576413]
[1765341091304,3.21,138.79,138.77,3.28576413]
[1765341091504,6.53725941,138.81,138.77,3.28576413]
[1765341091705,3.21,138.8,138.77,3.28576413]
[1765341092198,0.05385941,138.81,138.77,3.28576413]
[1765341092998,3.26385941,138.81,138.77,3.28576413]
[1765341093705,3.26385941,138.81,138.78,3.24]
[1765341095404,9.74705941,138.81,138.78,3.24]
[1765341098709,3.21,138.8,138.78,3.24]
[1765341107608,3.21,138.8,138.77,3.28576413]
[1765341121619,6.53705941,138.81,138.77,0.04576413]
[1765341121620,4.70500392,138.78,138.77,0.04576413]
[1765341121916,3.0,138.77,138.73,3.16]
[1765341122715,0.0526241,138.76,138.74,3.20768388]
[1765341123521,0.0526241,138.76,138.74,9.69398388]
[1765341123721,0.0526241,138.76,138.75,3.16]
[1765341126612,3.0,138.8,138.77,3.03]
[1765341126822,3.31,138.82,138.78,3.03]
[1765341127616,0.0514767,138.81,138.79,3.08144562]
[1765341129315,0.0514767,138.81,138.79,9.56534562]
[1765341129514,0.0514767,138.81,138.8,3.03]
[1765341132925,0.0514767,138.81,138.8,64.27]
[1765341139621,1.70500392,138.85,138.81,3.03]
[1765341139622,3.31,138.85,138.81,3.03]
[1765341140731,0.04667221,138.84,138.81,3.03]
[1765341141436,0.04667221,138.84,138.81,9.513]
[1765341141637,0.04667221,138.84,138.82,3.03]
[1765341147851,3.31,138.87,138.83,3.03]
[1765341148156,3.31,138.87,138.84,64.27]
[1765341148350,3.31,138.89,138.85,3.03]
[1765341149046,0.04699138,138.88,138.86,3.0778483]
[1765341149243,3.04699138,138.88,138.86,3.0778483]
[1765341151545,0.04699138,138.88,138.86,3.0778483]
[1765341152358,3.0,138.93,138.87,3.32]
[1765341153352,0.05355807,138.91,138.89,3.3675114]
[1765341153552,0.05355807,138.91,138.89,64.5875114]
[1765341154857,0.05355807,138.91,138.9,3.32]
[1765341160860,103.38129931,138.99,138.9,3.32]
[1765341161064,3.0,138.97,138.9,3.32]
[1765341161460,3.0,138.97,138.92,3.32]
[1765341161968,3.0,138.97,138.91,6.4783]
[1765341161969,3.0,138.95,138.93,3.36702413]
[1765341164874,9.4767,138.95,138.93,0.04702413]
[1765341165074,3.0,138.94,138.93,0.04702413]
[1765341170977,9.52289482,138.96,138.93,3.36702413]
[1765341171376,3.0,138.95,138.93,3.36702413]
[1765341171578,3.0,138.94,138.93,0.04702413]
[1765341177882,3.0,138.95,138.93,3.36702413]
[1765341180475,3.0,138.95,138.93,0.04702413]
[1765341189182,3.0,138.95,138.93,3.26702413]
[1765341190189,3.30649482,138.96,138.93,3.26702413]
[1765341190391,0.04649482,138.96,138.93,3.26702413]
[1765341191106,0.04649482,138.96,138.95,3.22]
[1765341197088,3.26,139.0,138.97,3.22]
[1765341197490,3.26,139.0,138.95,100.7439]
[1765341197491,3.26,139.03,138.99,3.22]
[1765341198099,0.05231143,139.02,139.0,3.26867184]
[1765341198306,3.31231143,139.02,139.0,3.26867184]
[1765341199404,0.05231143,139.02,139.0,9.74277184]
[1765341199699,0.05231143,139.02,139.01,3.22]
[1765341202503,3.26,139.07,139.04,3.22]
[1765341203090,3.26,139.09,139.04,3.22]
[1765341203295,3.26,139.09,139.05,3.22]
[1765341203502,0.05050414,139.08,139.05,3.26567141]
[1765341204205,0.05050414,139.08,139.06,3.22]
[1765341207202,0.05050414,139.08,139.07,64.38]
[1765341207403,3.26,139.16,139.1,3.22]
[1765341207608,3.26,139.16,139.12,3.22]
[1765341207804,3.26,139.16,139.12,64.38]
[1765341207995,3.26,139.16,139.12,3.22]
[1765341208507,0.04683751,139.15,139.13,3.27499058]
[1765341209415,3.35683751,139.15,139.13,0.05499058]
[1765341209798,9.82443751,139.15,139.13,0.05499058]
[1765341210006,3.31,139.14,139.13,0.05499058]
[1765341210811,0.04683751,139.15,139.13,3.18499058]
[1765341211316,3.31,139.14,139.13,0.05499058]
[1765341214215,0.04683751,139.15,139.13,3.18499058]
[1765341214515,3.31,139.2,139.15,3.13]
[1765341214725,5.0061397,139.2,139.15,3.13]
[1765341214923,3.31,139.19,139.15,3.13]
[1765341215117,3.31,139.19,139.14,61.12]
[1765341215118,3.31,139.17,139.12,64.25]
[1765341215829,3.35956734,139.16,139.13,3.17751914]
[1765341217023,5.05570704,139.16,139.13,0.04751914]
[1765341217222,3.31,139.15,139.13,0.04751914]
[1765341217526,5.0061397,139.14,139.13,0.04751914]
[1765341218529,3.31,139.13,139.08,3.13]
[1765341218725,1.6961397,139.12,139.05,4.8261397]
[1765341218920,3.31,139.11,139.05,65.9461397]
[1765341219233,5.0061397,139.14,139.07,3.13]
[1765341219429,5.0061397,139.14,139.09,3.1758787]
[1765341219430,0.05082227,139.12,139.09,3.1758787]
[1765341219624,3.36082227,139.12,139.09,3.1758787]
[1765341220528,0.05082227,139.12,139.09,3.1758787]
[1765341220734,3.36082227,139.12,139.09,0.0458787]
[1765341224334,5.05696197,139.12,139.09,0.0458787]
[1765341224530,3.31,139.11,139.09,0.0458787]
[1765341225639,3.31,139.1,139.09,0.0458787]
[1765341226340,5.0061397,139.1,139.09,0.0458787]
[1765341226739,3.31,139.09,139.05,64.25]
[1765341227443,3.31,139.09,139.05,61.12]
[1765341227640,0.04903122,139.08,139.06,0.04969529]
[1765341227840,3.35903122,139.08,139.06,0.04969529]
[1765341232042,3.35903122,139.08,139.06,3.17969529]
[1765341232234,0.04903122,139.08,139.06,3.17969529]
[1765341233842,3.35903122,139.08,139.06,3.17969529]
[1765341238949,3.35903122,139.08,139.06,0.04969529]
[1765341239740,3.01,139.07,139.06,0.04969529]
[1765341241645,3.01,139.05,139.01,61.12]
[1765341242151,1.6961397,139.06,139.01,61.12]
[1765341242152,3.01,139.03,139.01,61.12]
[1765341242542,3.01,139.03,139.01,61.16719424]
[1765341242543,3.05765137,139.03,139.01,61.16719424]
[1765341243344,0.04765137,139.03,139.02,3.09]
[1765341243544,3.01,139.08,139.02,3.09]
[1765341244451,9.4809,139.08,139.02,9.563]
[1765341244652,0.05542273,139.06,139.03,3.09]
[1765341244846,0.05542273,139.06,139.03,3.13569456]
[1765341245152,113.548,139.14,139.03,3.13569456]
[1765341245153,3.01,139.12,139.06,3.09]
[1765341246158,0.05396412,139.1,139.08,0.05016926]
[1765341246358,3.36396412,139.1,139.08,0.05016926]
[1765341246559,3.31,139.11,139.09,1.6961397]
[1765341246762,3.31,139.11,139.1,1.6961397]
[1765341258571,3.31,139.09,139.08,0.05016926]
[1765341258867,3.35617293,139.12,139.08,4.98630896]
[1765341259072,3.35617293,139.12,139.1,1.6961397]
[1765341260571,3.31,139.11,139.1,1.6961397]
[1765341269090,6.51517293,139.12,139.1,1.6961397]
[1765341269091,6.51517293,139.12,139.11,3.24]
[1765341269494,0.04617293,139.12,139.11,3.24]
[1765341270480,0.04617293,139.12,139.1,1.6961397]
[1765341270481,3.16617293,139.12,139.09,5.0061397]
[1765341270783,3.16617293,139.12,139.09,3.31]
[1765341271493,9.63507293,139.12,139.09,3.31]
[1765341271789,6.51507293,139.12,139.1,3.31]
[1765341272293,9.63507293,139.12,139.1,3.31]
[1765341272995,0.04617293,139.12,139.1,3.31]
[1765341273880,0.04617293,139.12,139.11,5.96113766]
[1765341280107,6.4671,139.16,139.12,3.31]
[1765341281116,6.4671,139.16,139.14,3.31]
[1765341281690,3.12,139.21,139.16,3.31]
[1765341281898,3.12,139.2,139.17,3.35906987]
[1765341282895,9.5855,139.19,139.17,0.04906987]
[1765341283100,9.5855,139.19,139.17,3.35906987]
[1765341284296,3.12,139.18,139.17,0.04906987]
[1765341284504,9.5855,139.19,139.17,0.04906987]
[1765341284705,9.5855,139.19,139.17,3.35906987]
[1765341286306,3.12,139.18,139.17,0.04906987]
[1765341287304,6.4655,139.19,139.17,3.35906987]
[1765341287502,3.12,139.2,139.17,3.35906987]
[1765341288503,3.12,139.22,139.17,3.35906987]
[1765341289005,9.5842,139.22,139.17,3.35906987]
[1765341289212,3.12,139.21,139.17,3.35906987]
[1765341289425,9.5846,139.21,139.17,3.35906987]
[1765341292815,3.12,139.2,139.17,3.35906987]
[1765341293016,3.12,139.19,139.17,3.35906987]
[1765341293219,9.5851,139.2,139.17,3.35906987]
[1765341294207,3.12,139.19,139.17,3.35906987]
[1765341300419,3.06,139.21,139.17,3.35906987]
[1765341301022,3.06,139.2,139.17,0.04906987]
[1765341301608,3.06,139.18,139.17,0.04906987]
[1765341304708,3.06,139.19,139.17,3.30906987]
[1765341304909,3.06,139.2,139.17,3.30906987]
[1765341311819,3.06,139.2,139.17,0.04906987]
[1765341313625,3.01,139.19,139.17,0.04906987]
[1765341318927,3.01,139.21,139.18,3.3]
[1765341319726,3.01,139.23,139.2,3.3]
[1765341319932,3.01,139.23,139.2,3.34785224]
[1765341320823,3.01,139.23,139.2,0.04785224]
[1765341321923,9.4737,139.23,139.2,0.04785224]
[1765341322236,3.01,139.22,139.2,0.04785224]
[1765341323122,3.01,139.21,139.2,0.04785224]
[1765341325232,8.41169487,139.21,139.2,0.04785224]
[1765341328133,3.01,139.17,139.14,3.3]
[1765341329129,3.05675426,139.17,139.14,3.35048331]
[1765341329335,3.13,139.16,139.14,3.31048331]
[1765341330337,9.5969,139.16,139.14,3.31048331]
[1765341331240,3.13,139.16,139.14,3.31048331]
[1765341332734,3.13,139.16,139.14,5.00585072]
[1765341334241,3.13,139.16,139.14,3.31048331]
[1765341335843,0.04675426,139.17,139.15,1.69536741]
[1765341336047,0.04675426,139.17,139.16,3.26]
[1765341336246,3.13,139.21,139.17,3.26]
[1765341336451,3.13,139.21,139.19,1.69536741]
[1765341336637,6.70694372,139.27,139.21,6.4641]
[1765341336943,3.13,139.3,139.27,3.26]
[1765341337145,6.42175725,139.32,139.29,3.26]
[1765341337341,0.6149839,139.32,139.31,3.26]
[1765341343157,0.6149839,139.32,139.3,3.31280232]
[1765341344755,0.6149839,139.32,139.31,3.26]
[1765341347652,3.13,139.37,139.31,3.26]
[1765341347653,3.13,139.4,139.31,3.26]
[1765341347956,3.13,139.39,139.34,3.31279847]
[1765341348457,4.82536741,139.42,139.34,3.31279847]
[1765341348646,3.13,139.41,139.37,3.30900645]
[1765341349261,1.69536741,139.4,139.37,3.30900645]
[1765341349556,4.82536741,139.38,139.37,0.04900645]
[1765341349765,3.13,139.37,139.31,64.3]
[1765341349953,4.82536741,139.36,139.32,3.26]
[1765341350352,3.13,139.36,139.32,3.26]
[1765341350849,0.04899218,139.35,139.33,3.30884223]
[1765341351051,4.87435959,139.35,139.33,0.04884223]
[1765341351251,3.13,139.34,139.33,0.04884223]
[1765341356962,3.17899218,139.35,139.33,0.04884223]
[1765341360672,0.04899218,139.35,139.33,3.10884223]
[1765341361569,100.4196,139.41,139.33,3.10884223]
[1765341361570,3.23,139.4,139.33,3.10884223]
[1765341362476,3.23,139.4,139.34,3.06]
[1765341365976,4.92536741,139.4,139.34,3.06]
[1765341366171,3.23,139.4,139.35,3.06]
[1765341366464,3.15,139.39,139.36,3.2500166]
[1765341366775,3.15,139.39,139.36,0.0500166]
[1765341369370,3.15,139.39,139.36,3.2500166]
[1765341371167,8.15076741,139.41,139.36,3.2500166]
[1765341372276,8.15076741,139.41,139.36,0.0500166]
[1765341373167,3.15,139.4,139.36,0.0500166]
[1765341374073,3.15,139.39,139.36,0.0500166]
[1765341376372,3.15,139.39,139.31,3.2]
[1765341376373,3.15,139.36,139.31,3.2]
[1765341377381,3.20446659,139.35,139.32,3.24834269]
[1765341378666,11.358034,139.35,139.32,0.04834269]
[1765341379071,3.15,139.34,139.32,0.04834269]
[1765341379974,9.6086,139.34,139.32,0.04834269]
[1765341380179,3.15,139.33,139.32,0.04834269]
[1765341381181,3.15,139.32,139.25,3.2]
[1765341381680,3.15,139.32,139.27,3.2]
[1765341382178,3.19797344,139.31,139.28,3.25290181]
[1765341384578,3.19797344,139.31,139.28,0.05290181]
[1765341385182,4.84536741,139.3,139.28,0.05290181]
[1765341386089,3.15,139.3,139.28,0.05290181]
[1765341395987,0.04797344,139.31,139.28,3.19290181]
[1765341399793,3.11797344,139.31,139.28,3.19290181]
[1765341403082,3.11797344,139.31,139.28,0.05290181]
[1765341403595,3.11797344,139.31,139.28,3.19290181]
[1765341406295,0.04797344,139.31,139.28,3.19290181]
[1765341410100,3.07,139.37,139.3,3.14]
[1765341411185,3.07,139.34,139.32,0.05033411]
[1765341411389,3.11692218,139.34,139.32,0.05457977]
[1765341417906,0.04692218,139.34,139.33,3.14]
[1765341419501,0.04692218,139.34,139.33,9.5989]
[1765341422802,3.09692218,139.34,139.32,3.23457977]
[1765341423603,0.04692218,139.34,139.32,3.23457977]
[1765341431316,3.04692218,139.34,139.32,3.23457977]
[1765341432719,3.04692218,139.34,139.32,0.05457977]
[1765341438811,0.04692218,139.34,139.32,3.36457977]
[1765341440317,0.04692218,139.34,139.32,9.82377977]
[1765341440516,0.04692218,139.34,139.33,3.31]
[1765341441522,3.0,139.38,139.33,3.31]
[1765341442413,3.02321855,139.37,139.33,3.31]
[1765341442609,0.02321855,139.37,139.34,3.31]
[1765341443013,3.02321855,139.37,139.34,3.31]
[1765341443214,0.02321855,139.37,139.34,3.31]
[1765341443612,0.02321855,139.37,139.34,9.7683]
[1765341443920,0.02321855,139.37,139.35,64.31]
[1765341444216,0.02321855,139.37,139.36,3.31]
[1765341444626,0.02321855,139.37,139.35,64.36006574]
[1765341444818,0.02321855,139.37,139.36,3.31]
[1765341445121,0.02321855,139.37,139.35,64.36006574]
[1765341445317,0.02321855,139.37,139.36,3.31]
[1765341446823,3.02321855,139.37,139.35,61.05006574]
[1765341447418,3.02321855,139.37,139.35,0.05006574]
[1765341447619,3.0,139.36,139.35,0.05006574]
[1765341447816,3.02321855,139.37,139.35,3.36006574]
[1765341448012,0.02321855,139.37,139.35,3.36006574]
[1765341448418,3.0,139.42,139.35,3.36006574]
[1765341449016,3.0,139.42,139.37,3.31]
[1765341449223,3.0,139.42,139.38,3.06]
[1765341449619,3.0,139.42,139.39,3.10842942]
[1765341450326,3.0,139.42,139.39,0.04842942]
[1765341450626,3.01,139.41,139.39,0.04842942]
[1765341454233,3.01,139.4,139.39,0.04842942]
[1765341458842,6.4569,139.38,139.34,3.06]
[1765341459141,3.01,139.37,139.33,3.06]
[1765341459746,3.01,139.36,139.33,3.06]
[1765341460047,3.05842942,139.36,139.33,3.11178433]
[1765341460747,3.01,139.35,139.33,0.05178433]
[1765341462241,9.4681,139.35,139.33,0.05178433]
[1765341462446,3.01,139.34,139.33,0.05178433]
[1765341473851,6.50602942,139.36,139.33,0.05178433]
[1765341474056,3.01,139.35,139.33,0.05178433]
[1765341475756,3.05842942,139.36,139.33,3.11178433]
[1765341478269,0.04842942,139.36,139.35,3.06]
[1765341482872,9.555,139.42,139.37,3.22]
[1765341483055,3.1,139.41,139.39,3.22]
[1765341483962,3.1,139.41,139.39,3.27475709]
[1765341484454,3.1,139.43,139.39,3.27475709]
[1765341485771,9.5532,139.46,139.4,3.22]
[1765341486070,3.1,139.45,139.42,3.26939326]
[1765341486271,3.1,139.45,139.42,64.26939326]
[1765341488961,3.3,139.5,139.44,3.29]
[1765341489163,3.3,139.5,139.46,3.34021835]
[1765341489468,3.3,139.49,139.46,61.03021835]
[1765341490376,3.3,139.49,139.46,64.32021835]
[1765341490573,9.7516,139.49,139.46,64.32021835]
[1765341490767,3.3,139.48,139.46,61.03021835]
[1765341491769,3.3,139.48,139.46,64.32021835]
[1765341492182,3.3,139.55,139.47,3.29]
[1765341492370,3.3,139.55,139.51,3.29]
[1765341492671,3.3,139.55,139.5,0.04947741]
[1765341492672,102.01345377,139.54,139.5,0.04947741]
[1765341492877,3.3,139.53,139.5,0.04947741]
[1765341494569,3.3,139.52,139.5,0.04947741]
[1765341495267,3.3,139.51,139.43,3.29]
[1765341495469,3.3,139.5,139.43,64.25]
[1765341496075,9.751,139.5,139.44,3.29]
[1765341496271,9.751,139.5,139.46,0.04852925]
[1765341496467,0.04814777,139.48,139.46,0.04852925]
[1765341497070,3.34814777,139.48,139.46,0.04852925]
[1765341498167,0.04814777,139.48,139.47,3.29]
[1765341498562,0.04814777,139.48,139.46,0.04852925]
[1765341498965,0.04814777,139.48,139.46,3.33852925]
[1765341500069,0.04814777,139.48,139.46,5.02878302]
[1765341500268,0.04814777,139.48,139.47,3.29]
[1765341502871,0.04814777,139.48,139.46,3.33852925]
[1765341503672,8.14065377,139.52,139.46,3.33852925]
[1765341503673,3.3,139.54,139.48,3.29]
[1765341503874,3.3,139.54,139.5,3.29]
[1765341504270,1.69025377,139.57,139.48,64.25]
[1765341504271,3.3,139.52,139.48,64.25]
[1765341504779,3.3,139.52,139.49,0.05151334]
[1765341505282,3.3,139.54,139.49,3.34151334]
[1765341505478,3.3,139.54,139.51,3.29]
[1765341507976,3.3,139.53,139.5,3.33535238]
[1765341508481,3.3,139.51,139.5,0.04535238]
[1765341510980,3.3,139.51,139.47,3.29]
[1765341510981,3.3,139.51,139.45,3.01]
[1765341511179,3.25,139.48,139.43,3.01]
[1765341511378,3.25,139.46,139.4,3.01]
[1765341511579,3.25,139.46,139.42,3.01]
[1765341512182,0.04535238,139.45,139.43,3.0586053]
[1765341512385,3.29535238,139.45,139.43,3.0586053]
[1765341513382,0.04535238,139.45,139.43,3.0586053]
[1765341514178,3.29535238,139.45,139.43,0.0486053]
[1765341515079,0.04535238,139.45,139.43,3.0586053]
[1765341517079,8.14165377,139.5,139.43,3.0586053]
[1765341517281,11.39165377,139.5,139.43,3.0586053]
[1765341517790,11.39165377,139.5,139.44,3.01]
[1765341518581,3.25,139.47,139.43,3.0586053]
[1765341518785,3.25,139.47,139.44,0.04538933]
[1765341520088,3.25,139.46,139.44,0.04538933]
[1765341521483,3.25,139.45,139.44,0.04538933]
[1765341522390,9.7031,139.46,139.44,0.04538933]
[1765341522591,3.25,139.45,139.44,0.04538933]
[1765341524284,3.25,139.44,139.4,3.01]
[1765341525379,0.04538933,139.43,139.41,0.05065275]
[1765341525585,0.04538933,139.43,139.41,3.06065275]
[1765341525781,6.4527,139.47,139.43,3.01]
[1765341525782,9.7027,139.47,139.43,3.01]
[1765341526093,9.7027,139.47,139.44,5.64825632]
[1765341526891,9.7027,139.47,139.44,5.69847875]
[1765341527294,6.4518,139.49,139.46,2.63825632]
[1765341527597,3.25,139.52,139.49,3.01]
[1765341527789,3.25,139.55,139.5,5.64825632]
[1765341528297,3.25,139.54,139.52,2.63825632]
[1765341528500,3.25,139.54,139.52,2.68423627]
[1765341531799,3.25,139.54,139.52,0.04597995]
[1765341532103,3.25,139.53,139.52,0.04597995]
[1765341534606,3.25,139.51,139.45,66.60825632]
[1765341535598,3.29597995,139.49,139.47,0.0461064]
[1765341538704,9.74757995,139.49,139.47,0.0461064]
[1765341538902,3.25,139.48,139.43,3.01]
[1765341539211,3.25,139.48,139.41,5.66825632]
[1765341539603,100.3537,139.5,139.41,5.66825632]
[1765341539604,3.29,139.46,139.41,5.66825632]
[1765341540105,6.4526,139.47,139.42,3.08070641]
[1765341540106,3.34332239,139.45,139.42,3.08070641]
[1765341541308,9.7418,139.49,139.44,3.03]
[1765341541610,6.63164439,139.57,139.49,9.4811]
[1765341541799,3.29,139.59,139.56,3.03]
[1765341541999,100.2546,139.64,139.56,3.03]
[1765341542206,3.29,139.63,139.57,2.63825632]
[1765341542505,3.32876396,139.61,139.59,0.05037847]
[1765341543109,3.29,139.6,139.55,5.66825632]
[1765341544208,3.33739282,139.59,139.56,0.05219075]
[1765341544913,0.04739282,139.59,139.56,3.08219075]
[1765341548214,3.11,139.64,139.56,3.08219075]
[1765341548406,3.11,139.64,139.56,3.03]
[1765341548600,3.11,139.64,139.57,3.16]
[1765341549202,3.15174961,139.62,139.59,0.05308363]
[1765341549602,0.04174961,139.62,139.59,3.21308363]
[1765341551218,3.15174961,139.62,139.59,3.21308363]
[1765341551515,3.15174961,139.62,139.59,0.05308363]
[1765341555716,3.15174961,139.62,139.59,3.21308363]
[1765341558115,3.15174961,139.62,139.59,0.05308363]
[1765341558617,3.15174961,139.62,139.59,3.21308363]
[1765341561916,0.04174961,139.62,139.59,3.21308363]
[1765341562108,0.04174961,139.62,139.59,9.65958363]
[1765341562305,0.04174961,139.62,139.59,3.21308363]
[1765341563203,0.04174961,139.62,139.61,3.16]
[1765341564529,3.11,139.67,139.63,3.16]
[1765341565210,6.4429,139.68,139.63,3.16]
[1765341565411,3.24532475,139.69,139.63,3.16]
[1765341565612,6.35532475,139.69,139.65,3.21268532]